bitfinex-derivatives/quotes_BTCF0:USTF0_20241214
["timestamp","ask_amount","ask_price","bid_price","bid_amount"]
[1734215196047,0.18890196,101100.0,101090.0,1.83508484]
[1734215196261,0.18890196,101100.0,101090.0,1.50595032]
[1734215196454,0.18890196,101100.0,101090.0,1.83481025]
[1734215196850,0.18890196,101100.0,101090.0,1.50595032]
[1734215197454,0.18890196,101100.0,101090.0,1.3828063]
[1734215197952,0.18890196,101100.0,101090.0,1.50595032]
[1734215198248,0.18890196,101100.0,101090.0,1.78171774]
[1734215198448,0.18890196,101100.0,101090.0,1.38135328]
[1734215199059,0.18890196,101100.0,101090.0,1.5044973]
[1734215200255,0.26677952,101110.0,101100.0,0.049458]
[1734215200256,0.11857131,101110.0,101100.0,0.049458]
[1734215200465,0.11857131,101110.0,101100.0,1.19748283]
[1734215200756,0.24248813,101120.0,101110.0,0.049453]
[1734215200757,0.21285123,101120.0,101110.0,0.049453]
[1734215200955,0.21285123,101120.0,101110.0,0.77037172]
[1734215202762,0.21285123,101120.0,101110.0,0.94803919]
[1734215203159,0.15325526,101120.0,101110.0,0.94803919]
[1734215203564,0.12005526,101120.0,101110.0,0.77037172]
[1734215203761,0.21090821,101130.0,101120.0,0.049448]
[1734215203762,0.19665174,101130.0,101120.0,0.049448]
[1734215204062,0.22145928,101150.0,101120.0,1.20309801]
[1734215204365,0.143235,101150.0,101140.0,0.71092697]
[1734215204562,0.143235,101150.0,101140.0,0.53834495]
[1734215204865,0.0005,101140.0,101130.0,0.82451255]
[1734215205055,0.049938,101140.0,101130.0,0.88608456]
[1734215206161,0.049938,101140.0,101130.0,0.64935796]
[1734215206953,0.049438,101140.0,101130.0,0.64935796]
[1734215209873,0.049438,101140.0,101130.0,0.47181301]
[1734215212168,0.049438,101140.0,101130.0,0.64935796]
[1734215212367,0.049438,101140.0,101130.0,0.47181301]
[1734215212571,0.049438,101140.0,101130.0,0.64935796]
[1734215213879,0.049438,101140.0,101130.0,0.47181301]
[1734215214283,0.15331779,101150.0,101140.0,0.049438]
[1734215214583,0.15331779,101150.0,101140.0,0.11101001]
[1734215220287,0.15331779,101150.0,101140.0,0.17258202]
[1734215228490,0.15331779,101150.0,101140.0,0.049438]
[1734215228990,0.15331779,101150.0,101140.0,0.17258202]
[1734215229185,0.15331779,101150.0,101140.0,0.35012697]
[1734215232291,0.33105788,101150.0,101140.0,0.58685357]
[1734215234094,0.33105788,101150.0,101140.0,0.40930862]
[1734215234798,0.30095788,101150.0,101140.0,0.40930862]
[1734215235202,0.26875788,101150.0,101140.0,0.40930862]
[1734215235502,0.26875788,101150.0,101140.0,0.58720526]
[1734215235893,0.26875788,101150.0,101140.0,0.40930862]
[1734215237703,0.09101779,101150.0,101140.0,0.40930862]
[1734215238001,0.26875788,101150.0,101140.0,0.40930862]
[1734215238202,0.09101779,101150.0,101140.0,0.40930862]
[1734215238398,0.26875788,101150.0,101140.0,0.40930862]
[1734215239095,0.26875788,101150.0,101140.0,0.34773661]
[1734215241599,0.26875788,101150.0,101140.0,0.40930862]
[1734215241801,0.23725788,101150.0,101140.0,0.40930862]
[1734215242307,0.23725788,101150.0,101140.0,0.77010862]
[1734215242308,0.20783598,101150.0,101140.0,0.77010862]
[1734215242913,0.14831819,101150.0,101140.0,0.8296234]
[1734215243099,0.11253,101160.0,101150.0,0.049433]
[1734215243304,0.11253,101160.0,101150.0,0.47180501]
[1734215244407,0.26074629,101160.0,101150.0,0.70880317]
[1734215244604,0.24016005,101160.0,101150.0,0.70880317]
[1734215244807,0.24016005,101160.0,101150.0,1.29146044]
[1734215245207,0.24016005,101160.0,101150.0,0.70880317]
[1734215245509,0.15813005,101160.0,101150.0,1.29134811]
[1734215245716,0.15813005,101160.0,101150.0,1.32324811]
[1734215246205,0.15813005,101160.0,101150.0,1.38482012]
[1734215246409,0.14821629,101160.0,101150.0,1.13072288]
[1734215246609,0.14821629,101160.0,101150.0,1.41641754]
[1734215246808,0.25768455,101170.0,101150.0,1.41641754]
[1734215246809,0.37550084,101170.0,101160.0,0.049429]
[1734215247012,0.14821629,101170.0,101160.0,0.77037118]
[1734215247319,0.19763629,101180.0,101170.0,0.049424]
[1734215247616,0.05953007,101180.0,101170.0,0.88569045]
[1734215248412,0.05953007,101180.0,101170.0,0.68028068]
[1734215248605,0.01011007,101180.0,101170.0,0.71098068]
[1734215248806,0.29471438,101190.0,101170.0,0.71098068]
[1734215249006,0.29521438,101190.0,101180.0,0.42237201]
[1734215249912,0.29521438,101190.0,101180.0,0.47179101]
[1734215250513,0.35678639,101190.0,101180.0,0.3608]
[1734215250914,0.35628639,101190.0,101180.0,0.3608]
[1734215251112,0.29471438,101190.0,101180.0,0.42237201]
[1734215251615,0.29471438,101190.0,101180.0,0.3608]
[1734215251814,0.049424,101170.0,101160.0,0.85712244]
[1734215252117,0.049424,101170.0,101160.0,0.98026646]
[1734215252310,0.049424,101170.0,101160.0,0.74375669]
[1734215254116,0.04942,101180.0,101170.0,0.049423]
[1734215254429,0.04942,101180.0,101170.0,0.47179501]
[1734215260814,0.04942,101180.0,101170.0,0.410223]
[1734215261016,0.04942,101180.0,101170.0,0.47179501]
[1734215261722,0.04942,101180.0,101170.0,0.50399501]
[1734215263830,0.16755078,101180.0,101170.0,0.50399501]
[1734215265748,0.11813078,101180.0,101170.0,0.50399501]
[1734215265950,0.42294137,101190.0,101180.0,0.049419]
[1734215266249,0.42294137,101190.0,101180.0,0.47179101]
[1734215266639,0.35934137,101190.0,101180.0,0.47179101]
[1734215268044,0.35934137,101190.0,101180.0,0.53336302]
[1734215268250,0.35934137,101190.0,101180.0,0.47179101]
[1734215269246,0.35934137,101190.0,101180.0,0.53336302]
[1734215269948,0.32734137,101190.0,101180.0,0.53336302]
[1734215271235,0.20921059,101190.0,101180.0,0.53336302]
[1734215272242,0.15979459,101190.0,101180.0,0.53336302]
[1734215272441,0.15979459,101190.0,101180.0,0.71074769]
[1734215274643,0.15979459,101190.0,101180.0,0.94725746]
[1734215278752,0.2782414,101190.0,101180.0,0.97855746]
[1734215279460,0.2782414,101190.0,101180.0,0.80117279]
[1734215279760,0.13002511,101190.0,101180.0,0.80117279]
[1734215283148,0.13002511,101190.0,101180.0,0.97856546]
[1734215285468,0.17943911,101190.0,101180.0,0.97856546]
[1734215286373,0.17943911,101190.0,101180.0,0.80117279]
[1734215288470,0.13002511,101190.0,101180.0,0.97856414]
[1734215288664,0.1199299,101190.0,101180.0,0.97856414]
[1734215291281,0.26814619,101190.0,101180.0,0.97856414]
[1734215291868,0.1199299,101190.0,101180.0,0.97856414]
[1734215292468,0.26814619,101190.0,101180.0,0.80117279]
[1734215292668,0.1199299,101190.0,101180.0,0.80117279]
[1734215292873,0.1693439,101190.0,101180.0,0.80117279]
[1734215293275,0.31756019,101190.0,101180.0,0.80117279]
[1734215296271,0.31756019,101190.0,101180.0,1.09742049]
[1734215296872,0.31756019,101190.0,101180.0,1.38264654]
[1734215297064,0.26814619,101190.0,101180.0,1.38264654]
[1734215298167,0.26814619,101190.0,101180.0,1.14613677]
[1734215298475,0.1199299,101190.0,101180.0,1.14613677]
[1734215299279,0.26814619,101190.0,101180.0,1.14613677]
[1734215302279,0.26814619,101190.0,101180.0,1.50163401]
[1734215302578,0.26814619,101190.0,101180.0,1.14613677]
[1734215303481,0.26814619,101190.0,101180.0,1.43157005]
[1734215303779,0.26814619,101190.0,101180.0,1.146344]
[1734215306982,0.26814619,101190.0,101180.0,1.50184124]
[1734215307679,0.26814619,101190.0,101180.0,1.50185985]
[1734215316590,0.26814619,101190.0,101180.0,1.78732953]
[1734215316890,0.26814619,101190.0,101180.0,1.50187764]
[1734215317795,0.26814619,101190.0,101180.0,1.1463804]
[1734215318190,0.26814619,101190.0,101180.0,1.50187764]
[1734215321196,0.26814619,101190.0,101180.0,1.50188744]
[1734215322195,0.26814619,101190.0,101180.0,1.1463902]
[1734215323482,0.26814619,101190.0,101180.0,1.50188744]
[1734215323785,0.26814619,101190.0,101180.0,1.1463902]
[1734215324193,0.14969938,101190.0,101180.0,1.1463902]
[1734215324989,0.14969938,101190.0,101180.0,1.08481819]
[1734215325497,0.14821629,101190.0,101180.0,1.08481819]
[1734215325696,0.14821629,101190.0,101180.0,1.08482812]
[1734215327095,0.14821629,101190.0,101180.0,1.44032536]
[1734215327395,0.14821629,101190.0,101180.0,1.50189737]
[1734215327586,0.14821629,101190.0,101180.0,1.14640013]
[1734215330192,0.14821629,101190.0,101180.0,0.86091072]
[1734215330499,0.14821629,101190.0,101180.0,1.14649016]
[1734215330893,0.14821629,101190.0,101180.0,1.02334614]
[1734215331093,0.14821629,101190.0,101180.0,1.14649016]
[1734215336191,0.14821629,101190.0,101180.0,1.5019874]
[1734215336798,0.26681133,101190.0,101180.0,1.5019874]
[1734215342698,0.26681133,101190.0,101180.0,1.5026753]
[1734215343102,0.26681133,101190.0,101180.0,1.56424731]
[1734215343405,0.1,101200.0,101190.0,0.049414]
[1734215343595,0.1,101200.0,101190.0,1.2380226]
[1734215343795,0.18889212,101200.0,101190.0,1.2380226]
[1734215344198,0.18889212,101200.0,101190.0,1.59536298]
[1734215344493,0.18889212,101200.0,101190.0,1.2380226]
[1734215344694,0.18889212,101200.0,101190.0,1.59517512]
[1734215345498,0.18889212,101200.0,101190.0,1.2380226]
[1734215345893,0.18889212,101200.0,101190.0,1.59519524]
[1734215345894,0.1,101200.0,101190.0,1.59519524]
[1734215347705,0.1,101200.0,101190.0,1.2380226]
[1734215348997,0.1,101200.0,101190.0,1.59485957]
[1734215349202,0.1,101200.0,101190.0,1.2380226]
[1734215349697,0.1,101200.0,101190.0,1.05197858]
[1734215349901,0.149409,101200.0,101190.0,1.05356616]
[1734215350105,0.180909,101200.0,101190.0,1.05356616]
[1734215350304,0.26980112,101200.0,101190.0,1.0037563]
[1734215350511,0.26980112,101200.0,101190.0,1.30308651]
[1734215351100,0.26980112,101200.0,101190.0,1.0037563]
[1734215351502,0.26980112,101200.0,101190.0,0.70824349]
[1734215351698,0.26980112,101200.0,101190.0,1.0037563]
[1734215351907,0.26980112,101200.0,101190.0,0.70824349]
[1734215355399,0.27977651,101200.0,101190.0,0.70824349]
[1734215356298,0.22039212,101200.0,101190.0,0.70824349]
[1734215356600,0.22039212,101200.0,101190.0,0.47178601]
[1734215357402,0.22039212,101200.0,101190.0,0.70826283]
[1734215357599,0.22039212,101200.0,101190.0,1.00377564]
[1734215360208,0.22039212,101200.0,101190.0,0.47178601]
[1734215360410,0.22039212,101200.0,101190.0,0.76729882]
[1734215363207,0.22039212,101200.0,101190.0,1.30274087]
[1734215363507,0.22039212,101200.0,101190.0,1.06618953]
[1734215366611,0.1,101200.0,101190.0,1.06618953]
[1734215368107,0.18881452,101200.0,101190.0,1.06618953]
[1734215370003,0.18881452,101200.0,101190.0,0.76729882]
[1734215370207,0.18881452,101200.0,101190.0,1.06589834]
[1734215370816,0.1,101200.0,101190.0,1.06589834]
[1734215374712,0.1,101200.0,101190.0,1.06589166]
[1734215376114,0.149409,101200.0,101190.0,1.06589166]
[1734215379216,0.149409,101200.0,101190.0,1.06596566]
[1734215379411,0.29751489,101200.0,101190.0,1.06596566]
[1734215380718,0.29751489,101200.0,101190.0,1.4214629]
[1734215383912,0.29751489,101200.0,101190.0,1.35989089]
[1734215384119,0.29751489,101200.0,101190.0,1.4214629]
[1734215388020,0.29751489,101200.0,101190.0,1.4532629]
[1734215388425,0.29751489,101200.0,101190.0,1.48412045]
[1734215388925,0.29751489,101200.0,101190.0,1.12332045]
[1734215389114,0.29751489,101200.0,101190.0,1.48412045]
[1734215390722,0.149409,101200.0,101190.0,1.0670512]
[1734215390924,0.149409,101200.0,101190.0,1.12862321]
[1734215392124,0.29751489,101200.0,101190.0,1.12862321]
[1734215392823,0.29751489,101200.0,101190.0,1.12857857]
[1734215397318,0.29751489,101200.0,101190.0,1.12846485]
[1734215402827,0.29751489,101200.0,101190.0,1.12844037]
[1734215404423,0.41609013,101200.0,101190.0,1.12844037]
[1734215404625,0.29751489,101200.0,101190.0,1.12844037]
[1734215406630,0.41609021,101200.0,101190.0,1.48393761]
[1734215407629,0.29751489,101200.0,101190.0,1.12844037]
[1734215409126,0.29751489,101200.0,101190.0,0.82949882]
[1734215409325,0.29751489,101200.0,101190.0,1.12845507]
[1734215415336,0.29751489,101200.0,101190.0,1.48395231]
[1734215416335,0.41609877,101200.0,101190.0,1.48395231]
[1734215416529,0.29751489,101200.0,101190.0,1.48395231]
[1734215416838,0.29751489,101200.0,101190.0,1.12845507]
[1734215417732,0.29751489,101200.0,101190.0,1.06688306]
[1734215418029,0.29751489,101200.0,101190.0,1.03613635]
[1734215419541,0.29751489,101200.0,101190.0,1.39163359]
[1734215420038,0.29751489,101200.0,101190.0,1.4532056]
[1734215420335,0.29751489,101200.0,101190.0,1.03613635]
[1734215422144,0.29751489,101200.0,101190.0,1.03607614]
[1734215423143,0.29751489,101200.0,101190.0,1.09764815]
[1734215425437,0.29751489,101200.0,101190.0,1.45314539]
[1734215426437,0.29751489,101200.0,101190.0,1.75134092]
[1734215426648,0.29751489,101200.0,101190.0,1.45279159]
[1734215429840,0.29751489,101200.0,101190.0,1.09729435]
[1734215430735,0.29751489,101200.0,101190.0,1.09652344]
[1734215432943,0.29751489,101200.0,101190.0,1.03495143]
[1734215435132,0.29751489,101200.0,101190.0,1.03468429]
[1734215439442,0.29751489,101200.0,101190.0,1.03510699]
[1734215441239,0.29751489,101200.0,101190.0,1.39060423]
[1734215442747,0.29751489,101200.0,101190.0,1.03510699]
[1734215444351,0.29751489,101200.0,101190.0,1.39107105]
[1734215448148,0.29751489,101200.0,101190.0,0.67477381]
[1734215448349,0.29751489,101200.0,101190.0,1.03557381]
[1734215448544,0.29751489,101200.0,101190.0,1.03610714]
[1734215453148,0.29751489,101200.0,101190.0,0.73752681]
[1734215453344,0.29751489,101200.0,101190.0,1.03611087]
[1734215454350,0.29751489,101200.0,101190.0,1.39160811]
[1734215456056,0.29751489,101200.0,101190.0,1.45318012]
[1734215456544,0.3590869,101200.0,101190.0,1.39160811]
[1734215456763,1.11121257,101200.0,101190.0,0.23721757]
[1734215456948,0.049414,101190.0,101180.0,0.29551281]
[1734215457254,0.53410654,101190.0,101180.0,0.29551281]
[1734215457647,0.53410654,101190.0,101180.0,0.17781119]
[1734215457950,0.3859322,101190.0,101180.0,0.17781119]
[1734215458349,0.53405152,101190.0,101180.0,0.17781119]
[1734215459458,0.89485152,101190.0,101180.0,0.17781119]
[1734215459651,0.95642353,101190.0,101180.0,0.17781119]
[1734215459956,0.89485152,101190.0,101180.0,0.17781119]
[1734215460451,0.04942,101180.0,101170.0,0.17772079]
[1734215460755,0.85937851,101180.0,101170.0,0.17772079]
[1734215460958,0.71131021,101180.0,101170.0,0.17772079]
[1734215461665,0.049424,101170.0,101160.0,0.00058667]
[1734215461954,0.3253829,101170.0,101160.0,0.00058667]
[1734215462257,0.3253829,101170.0,101160.0,8.667e-05]
[1734215462655,0.47336405,101170.0,101160.0,8.667e-05]
[1734215462853,0.35497716,101170.0,101160.0,8.667e-05]
[1734215463463,0.47323293,101170.0,101160.0,8.667e-05]
[1734215464455,0.83403293,101170.0,101160.0,8.667e-05]
[1734215464847,0.56779601,101170.0,101160.0,8.667e-05]
[1734215465052,0.77734917,101170.0,101160.0,8.667e-05]
[1734215465359,0.77734917,101170.0,101160.0,0.00058667]
[1734215465557,0.77235554,101170.0,101160.0,0.00058667]
[1734215466058,0.65420515,101170.0,101160.0,0.00058667]
[1734215466259,0.77734917,101170.0,101160.0,8.667e-05]
[1734215466460,0.89547186,101170.0,101160.0,8.667e-05]
[1734215467261,0.89547186,101170.0,101160.0,0.00058667]
[1734215468456,0.89547186,101170.0,101160.0,8.667e-05]
[1734215468661,0.77734917,101170.0,101160.0,8.667e-05]
[1734215468864,0.049433,101150.0,101140.0,0.50951373]
[1734215469162,0.11100501,101150.0,101140.0,0.50951373]
[1734215469860,0.11109373,101150.0,101140.0,0.3914]
[1734215470163,0.11109373,101150.0,101140.0,0.3608]
[1734215470366,0.049438,101140.0,101130.0,0.3608]
[1734215470661,0.17267901,101140.0,101130.0,0.3608]
[1734215470854,0.53347901,101140.0,101120.0,0.474147]
[1734215471055,0.42237201,101130.0,101110.0,0.442152]
[1734215471251,0.11102001,101120.0,101110.0,0.442152]
[1734215474464,0.11108968,101120.0,101110.0,0.442152]
[1734215475059,6.967e-05,101120.0,101110.0,0.50372501]
[1734215475554,0.06164168,101120.0,101110.0,0.442153]
[1734215475755,0.11108968,101120.0,101110.0,0.442153]
[1734215479370,0.04951767,101120.0,101110.0,0.442653]
[1734215479568,0.11108968,101120.0,101110.0,0.442653]
[1734215491384,0.11108968,101120.0,101110.0,0.442153]
[1734215493578,0.19964294,101120.0,101110.0,0.442153]
[1734215497375,0.13807093,101120.0,101110.0,0.442153]
[1734215497581,0.25614194,101120.0,101110.0,0.442153]
[1734215497980,0.31771395,101120.0,101110.0,0.442153]
[1734215499479,0.22916069,101120.0,101110.0,0.442153]
[1734215500082,0.16758868,101120.0,101110.0,0.442153]
[1734215500477,0.25907083,101120.0,101110.0,1.01971473]
[1734215505086,0.19749882,101120.0,101110.0,1.01971473]
[1734215508190,0.25907083,101120.0,101110.0,1.01971473]
[1734215509485,0.25907083,101120.0,101110.0,1.0198586]
[1734215516187,0.19749882,101120.0,101110.0,1.0198586]
[1734215518098,0.25907083,101120.0,101110.0,1.0198586]
[1734215518395,0.25907083,101120.0,101110.0,1.0201201]
[1734215521198,0.25907083,101120.0,101110.0,1.02068991]
[1734215522098,0.43701702,101120.0,101110.0,1.02068991]
[1734215523099,0.43701702,101120.0,101110.0,0.73766581]
[1734215523413,0.43701702,101120.0,101110.0,1.02099158]
[1734215524209,0.43701702,101120.0,101110.0,0.98909158]
[1734215526398,0.25907083,101120.0,101110.0,0.98909158]
[1734215529113,0.43701702,101120.0,101110.0,0.98909158]
[1734215529918,0.37544501,101120.0,101110.0,0.86587215]
[1734215530120,0.43701702,101120.0,101110.0,1.22667215]
[1734215530316,0.43701702,101120.0,101110.0,0.98926742]
[1734215532132,0.43701702,101120.0,101110.0,0.62846742]
[1734215532429,0.43701702,101120.0,101110.0,0.98926742]
[1734215532625,0.43701702,101120.0,101110.0,0.62846742]
[1734215532822,0.43701702,101120.0,101110.0,0.98926742]
[1734215534032,0.43701702,101120.0,101110.0,0.62846742]
[1734215534217,0.43701702,101120.0,101110.0,0.98877531]
[1734215535330,0.43701702,101120.0,101110.0,0.62797531]
[1734215535535,0.43701702,101120.0,101110.0,0.98877531]
[1734215536331,0.43701702,101120.0,101110.0,0.62797531]
[1734215536525,0.43701702,101120.0,101110.0,0.98877531]
[1734215537029,0.43701702,101120.0,101110.0,0.62797531]
[1734215537731,0.43701702,101120.0,101110.0,0.98877531]
[1734215538519,0.43701702,101120.0,101110.0,0.98870684]
[1734215540023,0.37544501,101120.0,101110.0,0.98870684]
[1734215540442,0.25907083,101120.0,101110.0,0.98870684]
[1734215542529,0.25907083,101120.0,101110.0,0.62790684]
[1734215542530,0.43701702,101120.0,101110.0,0.62790684]
[1734215542737,0.43701702,101120.0,101110.0,0.98870684]
[1734215543030,0.37544501,101120.0,101110.0,0.98870684]
[1734215543226,0.43701702,101120.0,101110.0,0.98870684]
[1734215546140,0.49858903,101120.0,101110.0,1.17664011]
[1734215546338,0.49883609,101120.0,101110.0,1.17664011]
[1734215547436,0.49883609,101120.0,101110.0,1.17576445]
[1734215551530,0.49883609,101120.0,101110.0,1.17607226]
[1734215552742,0.49883609,101120.0,101110.0,0.89369908]
[1734215554338,0.49883609,101120.0,101110.0,1.17635038]
[1734215557546,0.49883609,101120.0,101110.0,0.89369908]
[1734215558949,0.49883609,101120.0,101110.0,0.59818627]
[1734215560248,0.35060788,101120.0,101110.0,0.59818627]
[1734215562149,0.35060788,101120.0,101110.0,0.23738627]
[1734215562347,0.49876844,101120.0,101110.0,0.59818627]
[1734215563145,0.49876844,101120.0,101110.0,0.23738627]
[1734215563348,0.49876844,101120.0,101110.0,0.59818627]
[1734215563849,0.35060788,101120.0,101110.0,0.59818627]
[1734215566460,0.37069604,101120.0,101110.0,0.59818627]
[1734215567747,0.37069604,101120.0,101110.0,0.23738627]
[1734215567947,0.37069604,101120.0,101110.0,0.59818627]
[1734215568147,0.37069604,101120.0,101110.0,0.23738627]
[1734215573962,0.35060788,101120.0,101110.0,0.23738627]
[1734215575358,0.37045365,101120.0,101110.0,0.23738627]
[1734215576858,0.24730963,101120.0,101110.0,0.28683927]
[1734215577062,0.37045365,101120.0,101110.0,0.28683927]
[1734215579859,0.24730963,101120.0,101110.0,0.28683927]
[1734215580052,0.30888164,101120.0,101110.0,0.28683927]
[1734215580557,0.30888164,101120.0,101110.0,0.46484344]
[1734215581061,0.24730963,101120.0,101110.0,0.82564344]
[1734215581255,0.28903587,101120.0,101110.0,0.82564344]
[1734215581662,0.28903587,101120.0,101110.0,0.64763927]
[1734215582161,0.4988011,101120.0,101110.0,0.64763927]
[1734215582362,0.43722909,101120.0,101110.0,0.64763927]
[1734215583154,0.28903587,101120.0,101110.0,0.64763927]
[1734215584172,0.28903587,101120.0,101110.0,0.28683927]
[1734215585069,0.35060788,101120.0,101110.0,0.64763927]
[1734215585567,0.28903587,101120.0,101110.0,0.64763927]
[1734215586465,0.28903587,101120.0,101110.0,0.46485822]
[1734215588471,0.35060788,101120.0,101110.0,0.46485822]
[1734215594963,0.35060788,101120.0,101110.0,0.41540522]
[1734215605383,0.28903587,101120.0,101110.0,0.41540522]
[1734215610783,0.35060788,101120.0,101110.0,0.41540522]
[1734215611092,0.59496403,101120.0,101110.0,0.17801895]
[1734215611382,0.049453,101110.0,101100.0,0.41540522]
[1734215611575,0.48975346,101110.0,101100.0,0.41540522]
[1734215611895,0.44177458,101110.0,101100.0,0.41540522]
[1734215614288,0.58985779,101110.0,101100.0,0.41540522]
[1734215615186,0.44177458,101110.0,101100.0,0.41540522]
[1734215615393,0.44177458,101110.0,101100.0,0.17801895]
[1734215615881,0.80257458,101110.0,101100.0,0.17801895]
[1734215616293,0.80257458,101110.0,101090.0,0.41552542]
[1734215616476,0.32062815,101100.0,101090.0,0.41602542]
[1734215617485,0.32062815,101100.0,101090.0,0.41552542]
[1734215618590,0.32062815,101100.0,101090.0,0.41602542]
[1734215619380,0.32062815,101100.0,101090.0,0.17813915]
[1734215620589,0.32062815,101100.0,101090.0,0.17863915]
[1734215621387,0.4985104,101100.0,101090.0,0.0001202]
[1734215621686,0.4985104,101100.0,101080.0,0.17801895]
[1734215621687,0.049463,101090.0,101080.0,0.17801895]
[1734215621983,0.77519648,101090.0,101080.0,0.17801895]
[1734215622187,0.049468,101080.0,101070.0,0.41540522]
[1734215622498,0.65165604,101080.0,101070.0,0.41540522]
[1734215622781,0.65173647,101080.0,101070.0,0.17801895]
[1734215623288,0.74037858,101080.0,101070.0,0.17801895]
[1734215624384,0.049473,101070.0,101060.0,0.82568222]
[1734215624688,0.11104501,101070.0,101060.0,0.82568222]
[1734215625589,0.11104501,101070.0,101060.0,0.64766327]
[1734215626285,0.11104501,101070.0,101060.0,0.82511743]
[1734215627083,0.11104501,101070.0,101060.0,0.46431743]
[1734215627286,0.11104501,101070.0,101060.0,0.82511743]
[1734215629487,0.11104501,101070.0,101060.0,0.82561743]
[1734215629687,0.12114067,101070.0,101060.0,0.82561743]
[1734215630088,0.12114067,101070.0,101060.0,0.58823116]
[1734215633597,0.12114067,101070.0,101060.0,0.22743116]
[1734215633794,0.12114067,101070.0,101060.0,0.58823116]
[1734215637485,0.20978278,101070.0,101060.0,0.58823116]
[1734215642595,0.20978278,101070.0,101060.0,0.58773116]
[1734215643607,0.20978278,101070.0,101060.0,0.82511743]
[1734215644198,0.3280268,101070.0,101060.0,0.82511743]
[1734215646306,0.3280268,101070.0,101060.0,0.64766327]
[1734215646696,0.3280268,101070.0,101060.0,0.28686327]
[1734215646892,0.3280268,101070.0,101060.0,0.46455727]
[1734215647297,0.3280268,101070.0,101060.0,0.28686327]
[1734215647901,0.23938469,101070.0,101060.0,0.28686327]
[1734215650210,0.38727415,101070.0,101060.0,0.28686327]
[1734215651310,0.26903013,101070.0,101060.0,0.62775611]
[1734215653814,0.26903013,101070.0,101060.0,0.86514214]
[1734215656512,0.26903013,101070.0,101060.0,0.86517504]
[1734215657408,0.26903013,101070.0,101060.0,0.81569804]
[1734215658619,0.44679719,101070.0,101060.0,0.81569804]
[1734215660913,0.44679719,101070.0,101060.0,0.81571325]
[1734215662612,0.26903013,101070.0,101060.0,0.81571325]
[1734215663216,0.44679719,101070.0,101060.0,0.81571325]
[1734215664222,0.44679719,101070.0,101060.0,0.23738603]
[1734215664524,0.26903013,101070.0,101060.0,0.23738603]
[1734215667308,0.20745812,101070.0,101060.0,0.23738603]
[1734215667518,0.26903013,101070.0,101060.0,0.23738603]
[1734215669024,0.20745812,101070.0,101060.0,0.23738603]
[1734215669221,0.26903013,101070.0,101060.0,0.23738603]
[1734215672830,0.26903013,101070.0,101060.0,0.81474725]
[1734215672831,0.44679719,101070.0,101060.0,0.81474725]
[1734215674020,0.44679719,101070.0,101060.0,0.81475295]
[1734215675822,0.44679719,101070.0,101060.0,0.86422995]
[1734215677520,0.38522518,101070.0,101060.0,0.86422995]
[1734215677723,0.20745812,101070.0,101060.0,0.86422995]
[1734215677930,0.26903013,101070.0,101060.0,0.86422995]
[1734215678431,0.44679719,101070.0,101060.0,0.86415253]
[1734215679326,0.38522518,101070.0,101060.0,0.86415253]
[1734215679529,0.44679719,101070.0,101060.0,0.86415253]
[1734215681330,0.44679719,101070.0,101060.0,0.28686303]
[1734215681530,0.29890773,101070.0,101060.0,0.58237584]
[1734215681926,0.29890773,101070.0,101060.0,0.28686303]
[1734215682125,0.29890773,101070.0,101060.0,0.58237584]
[1734215682327,0.44703475,101070.0,101060.0,0.28686303]
[1734215683530,0.44703475,101070.0,101060.0,0.58237584]
[1734215683931,0.44703475,101070.0,101060.0,0.28686303]
[1734215684443,0.29890773,101070.0,101060.0,0.58237584]
[1734215684735,0.44702454,101070.0,101060.0,0.58237584]
[1734215684938,0.29890773,101070.0,101060.0,0.58237584]
[1734215692337,0.29890773,101070.0,101060.0,0.28686303]
[1734215697151,0.23733572,101070.0,101060.0,0.28686303]
[1734215699148,0.29890773,101070.0,101060.0,0.28686303]
[1734215701351,0.14817392,101070.0,101060.0,0.98655692]
[1734215701650,0.1186409,101080.0,101070.0,0.049473]
[1734215701853,0.1186409,101080.0,101070.0,1.53239899]
[1734215702055,0.08900265,101080.0,101070.0,1.17623911]
[1734215702240,8.043e-05,101080.0,101070.0,1.94666437]
[1734215702444,8.043e-05,101080.0,101070.0,1.17623911]
[1734215702745,0.00058043,101080.0,101070.0,1.17623911]
[1734215702949,0.20748269,101090.0,101080.0,0.049468]
[1734215703142,0.11856047,101100.0,101090.0,0.049463]
[1734215703341,0.18996681,101110.0,101100.0,0.049458]
[1734215703546,0.18996681,101110.0,101100.0,0.67983701]
[1734215703753,0.1283948,101110.0,101100.0,0.67983701]
[1734215703954,0.19006498,101110.0,101100.0,0.67983701]
[1734215704754,0.18023065,101110.0,101100.0,0.67983701]
[1734215706351,0.18023065,101110.0,101100.0,0.71013701]
[1734215707753,0.06167018,101110.0,101100.0,0.71013701]
[1734215708467,0.06167018,101110.0,101100.0,0.72010006]
[1734215709852,9.817e-05,101110.0,101100.0,0.72010006]
[1734215710057,0.06167018,101110.0,101100.0,0.72010006]
[1734215710267,0.06167018,101110.0,101100.0,0.48322105]
[1734215715267,0.34836384,101110.0,101090.0,0.49158047]
[1734215715462,0.93764614,101100.0,101090.0,0.51168247]
[1734215715662,0.0005,101100.0,101090.0,0.45011046]
[1734215715970,0.0005,101100.0,101090.0,0.74856148]
[1734215716555,0.06167018,101110.0,101090.0,0.74856148]
[1734215716761,0.06167018,101110.0,101100.0,0.049458]
[1734215716961,0.06167018,101110.0,101100.0,0.22634638]
[1734215717460,9.817e-05,101110.0,101100.0,0.28791839]
[1734215720659,0.00059817,101110.0,101100.0,0.28791839]
[1734215720861,0.03269817,101110.0,101100.0,0.28791839]
[1734215721661,0.03219817,101110.0,101100.0,0.28791839]
[1734215722667,0.03269817,101110.0,101100.0,0.22634638]
[1734215723068,0.03269817,101110.0,101100.0,0.28791839]
[1734215723771,0.03219817,101110.0,101100.0,0.28791839]
[1734215724368,0.03219817,101110.0,101100.0,0.5247974]
[1734215724671,0.03269817,101110.0,101100.0,0.5247974]
[1734215725668,0.03219817,101110.0,101100.0,0.5247974]
[1734215726465,0.03219817,101110.0,101100.0,0.34790902]
[1734215726666,0.03269817,101110.0,101100.0,0.34790902]
[1734215727065,0.03269817,101110.0,101100.0,0.28633701]
[1734215727574,0.03219817,101110.0,101100.0,0.28633701]
[1734215728870,0.03219817,101110.0,101100.0,0.89639635]
[1734215729466,0.03219817,101110.0,101100.0,0.65951734]
[1734215730172,0.03219817,101110.0,101100.0,1.14346136]
[1734215730377,0.03219817,101110.0,101100.0,1.49912774]
[1734215730874,0.03219817,101110.0,101100.0,1.20299074]
[1734215731074,0.03219817,101110.0,101100.0,1.57754749]
[1734215731273,0.03219817,101110.0,101100.0,1.22188111]
[1734215731874,0.00971325,101120.0,101110.0,0.11102501]
[1734215732077,0.65236479,101130.0,101120.0,0.049448]
[1734215732272,0.80042473,101130.0,101120.0,0.60039704]
[1734215732473,0.80042473,101130.0,101120.0,0.89668042]
[1734215732667,0.80048161,101130.0,101120.0,0.89668042]
[1734215733064,0.43968161,101130.0,101120.0,0.89668042]
[1734215733268,0.80048161,101130.0,101120.0,0.65946038]
[1734215734378,0.80048161,101130.0,101120.0,0.89661685]